Cogmind - Beta 15 @@@ ROGUE MODE // 2025.05.06 @ 22:42:24 Player: Ulinator001 Result: Self-destructed Performance ------------- Evolutions (1) 500 Regions Visited (3) 600 Robots Destroyed (11) 55 Value Destroyed (128) 128 Prototype IDs (0) 0 Alien Tech Used (0) 0 Bonus (0) 0 TOTAL SCORE: 1283 Bonus ------- None Cogmind --------- Core Integrity 25/400 Matter 258/300 Energy 100/100 System Corruption 5% Temperature Warm (141) Movement Core (100) Ox1 Location -9/Materials Parts ------- > --- POWER (1) -------- (None) > --- PROPULSION (4) --- (None) > --- UTILITY (2) ------ Small Storage Unit > --- WEAPON (2) ------- (None) > --- INVENTORY (8) ---- Light Ion Engine Light Treads Light Treads Improved Terrain Scanner Seismic Detector Peak State ------------ > --- POWER ------------ Ion Engine > --- PROPULSION ------- Aluminum Leg Aluminum Leg Aluminum Leg > --- UTILITY ---------- Small Storage Unit Seismic Detector > --- WEAPON ----------- Assault Rifle Light Assault Rifle > --- INVENTORY -------- Light Ion Engine Light Treads Light Treads Improved Terrain Scanner Seismic Detector Targeting Computer Light Assault Rifle Light Assault Rifle [Rating: 9] Favorites ----------- Power Ion Engine Engine Ion Engine Propulsion Aluminum Leg Leg Aluminum Leg Utility Small Storage Unit Device Seismic Detector Storage Small Storage Unit Processor Targeting Computer Weapon Light Assault Rifle Ballistic Gun Light Assault Rifle Build | -11 -10 -10 -9 ------- Run | Yrd Mat Min Mat Slots Evolved 2 | . . . 2 Power . | . . . . Propulsion 2 | . . . 2 Utility . | . . . . Weapon . | . . . . Parts Attached 12 | 7 . . 5 Power 1 | 1 . . . Engine 1 | 1 . . . Core . | . . . . Reactor . | . . . . Propulsion 3 | 2 . . 1 Treads . | . . . . Leg 3 | 2 . . 1 Wheel . | . . . . Hover . | . . . . Flight . | . . . . Utility 4 | 2 . . 2 Device 2 | 1 . . 1 Storage 1 | 1 . . . Processor 1 | . . . 1 Hackware . | . . . . Protection . | . . . . Artifact . | . . . . Weapon 4 | 2 . . 2 Energy Gun . | . . . . Energy Cannon . | . . . . Ballistic Gun 4 | 2 . . 2 Ballistic Cannon . | . . . . Launcher . | . . . . Special Weapon . | . . . . Impact Weapon . | . . . . Slashing Weapon . | . . . . Piercing Weapon . | . . . . Special Melee Weapon . | . . . . Unidentified Prototypes . | . . . . Parts Lost 9 | . . . 9 Power 1 | . . . 1 Propulsion 3 | . . . 3 Utility 1 | . . . 1 Weapon 4 | . . . 4 Highest Loss Streak 9 | . . . 9 To Critical Strikes . | . . . . Average Backups 6 | 3 5 8 7 Power 1 | . 1 1 1 Propulsion 1 | 1 2 2 2 Utility 2 | . 2 3 2 Weapon 1 | . . 2 1 Tool/Special . | . . . . Unused Backups 5 | . 1 . 4 Power 2 | . 1 . 1 Propulsion 2 | . . . 2 Utility 1 | . . . 1 Weapon . | . . . . Tool/Special . | . . . . Average Slot Usage (%) 91 | . 100 100 77 Engine 11 | . 14 14 7 Leg 28 | . 28 28 28 Device 11 | . 14 14 8 Storage 12 | . 14 14 11 Ballistic Gun 25 | . 28 28 21 Peak Build Rating 9 | 7 8 8 9 Average Rating 7 | 5 7 8 7 On Entrance 5 | . 7 8 8 Naked Turns . | . . . . Heaviest Build 14 | 14 14 14 14 Greatest Support 30 | 20 20 20 30 Greatest Overweight (x) 1 | 1 . . 1 Average Overweight (x) . | . . . . Largest Inventory Capacity 8 | 8 8 8 8 Average Capacity 7 | 7 8 8 8 Most Carried 8 | 5 8 8 8 Average Carried 6 | 3 6 8 7 Final Capacity 8 | 8 8 8 8 Final Carried 8 | 5 8 8 5 Class Distribution -------------------- 100% | Mutant Dominant Class ---------------- Mutant | -10/Materials Mutant | -10/Mines Mutant | -9/Materials Resources | -11 -10 -10 -9 ----------- Run | Yrd Mat Min Mat Matter Collected 370 | 248 34 88 . Remotely . | . . . . Salvage Created 202 | 71 66 . 65 Parts 20 | 8 8 . 4 Haulers Intercepted . | . . . . Recyclers Shooed . | . . . . Parts Field Recycled . | . . . . Retrieved Matter . | . . . . Parts Self-Destructed . | . . . . Prevented . | . . . . Kills | -11 -10 -10 -9 ------- Run | Yrd Mat Min Mat Combat Hostiles Destroyed 6 | . 3 . 3 Guns 6 | . 3 . 3 Classes Destroyed 4 | 1 2 . 1 Tunneler 4 | 4 . . . Watcher 1 | . 1 . . Swarmer 5 | . 3 . 2 Grunt 1 | . . . 1 Best Kill Streak 3 | 2 3 . 3 Combat Bots Only 3 | . 3 . 3 Max Kills in Single Turn 1 | 1 1 . 1 Gunslinging . | . . . . Exploded . | . . . . Melee . | . . . . Uniques/NPCs Destroyed . | . . . . Combat | -11 -10 -10 -9 -------- Run | Yrd Mat Min Mat Hostile Shots Fired 157 | . 19 . 138 Missed 41 | . 3 . 38 Hits 116 | . 16 . 100 Melee 7 | . . . 7 Projectile 109 | . 16 . 93 Critical Strikes 2 | . . . 2 Damage Taken 1208 | . 135 . 1073 Core 384 | . 9 . 375 Absorbed by Shields . | . . . . Core Remaining (%) 98 | 100 . 96 . Volleys Fired 43 | 11 14 . 18 Largest 2 | 2 2 . 2 Hottest 40 | 40 40 . 40 Shots Fired 77 | 22 28 . 27 Gun 77 | 22 28 . 27 Cannon . | . . . . Launcher . | . . . . Special . | . . . . Kinetic 77 | 22 28 . 27 Thermal . | . . . . Explosive . | . . . . Electromagnetic . | . . . . Robot Hit Streak 10 | 5 4 . 10 Robot Miss Streak 5 | 3 5 . 2 Penetration Max . | . . . . Secondary Targets 3 | . 2 . 1 Max Gunslinging Chain 1 | . 1 . 1 Shots Hit Robots 46 | 13 12 . 21 Core Hits 19 | 5 7 . 7 Critical Kills . | . . . . Critical Parts Destroyed 1 | 1 . . . Critical Strikes 1 | 1 . . . Destroy 1 | 1 . . . Melee Attacks . | . . . . Impact . | . . . . Slashing . | . . . . Piercing . | . . . . Sneak Attacks . | . . . . Combat Hostiles . | . . . . Follow-up Attacks . | . . . . Damage Inflicted 440 | 133 120 . 187 Guns 440 | 133 120 . 187 Cannons . | . . . . Explosions . | . . . . Melee . | . . . . Ramming . | . . . . Kinetic 440 | 133 120 . 187 Thermal . | . . . . Explosive . | . . . . Electromagnetic . | . . . . Impact . | . . . . Slashing . | . . . . Piercing . | . . . . Highest Corruption 5 | . 2 2 5 Average Corruption 2 | . 2 2 3 Corruption Purged . | . . . . Corruption Blocked . | . . . . Effects 2 | . . 1 1 Heat Flow Errors 1 | . . . 1 Data Loss (minor) 1 | . . 1 . Overload Shots . | . . . . Overflow Damage . | . . . . Projectiles . | . . . . Explosions . | . . . . Melee . | . . . . Knockbacks . | . . . . Impact . | . . . . Kinetic . | . . . . Secondary . | . . . . Self-Inflicted Damage . | . . . . Shots . | . . . . Rammed . | . . . . Targets Rammed . | . . . . Kicked . | . . . . Crushed . | . . . . Highest Temperature 13 | . . . 13 Average Temperature 4 | . . . 4 Received Heat Transfer 183 | . . . 183 Siege Activations . | . . . . Martial Activations . | . . . . Shielding Activations . | . . . . Robots Disrupted . | . . . . Combat Hostiles . | . . . . Robots Corrupted . | . . . . Combat Hostiles . | . . . . Parts Fried . | . . . . Impact Corruptions . | . . . . Robots Melted . | . . . . Combat Hostiles . | . . . . Parts Melted . | . . . . Heat Transferred . | . . . . Parts Sabotaged . | . . . . Parts Stolen . | . . . . Parts Stripped . | . . . . Power Chain Reactions . | . . . . Alert | -11 -10 -10 -9 ------- Run | Yrd Mat Min Mat Maximum Alert Level . | . . . . Low Security (%) 100 | 100 100 100 100 Level 1 . | . . . . Level 2 . | . . . . Level 3 . | . . . . Level 4 . | . . . . Level 5 . | . . . . High Security . | . . . . Max Security . | . . . . Peak Influence 60 | 5 60 14 40 Initial 14 | . . 14 . Average 10 | 1 28 3 5 Influence Increases 218 | 20 93 . 105 Destroy 0b10 Robot/C 120 | . 60 . 60 Destroy 0b10 Robot/NC 25 | 20 5 . . Destroy Leader 12 | . 12 . . Successful Hack 16 | . 16 . . Lose Combat Pursuer 45 | . . . 45 Influence Decreases 218 | 20 56 37 105 Entered New Map 23 | . . 23 . Time Decay 115 | 20 56 14 25 Lost Part 80 | . . . 80 Squads Dispatched 2 | . . . 2 Investigation . | . . . . Extermination . | . . . . Reinforcement 2 | . . . 2 Assault . | . . . . Garrison . | . . . . Intercept . | . . . . Searches Triggered . | . . . . Construction Impeded . | . . . . Haulers Reinforced . | . . . . Active Scanning Responses . | . . . . Cargo Convoy Interrupts . | . . . . Stealth | -11 -10 -10 -9 --------- Run | Yrd Mat Min Mat Distress Signals . | . . . . Communications Jammed . | . . . . Distress Signals . | . . . . Times Spotted 21 | . 5 . 16 Peak Tracking Total 12 | . 3 . 12 Tactical Retreats 2 | . . . 2 Traps | -11 -10 -10 -9 ------- Run | Yrd Mat Min Mat Traps Triggered 1 | . 1 . . Indirectly . | . . . . Trap Hack Attempts . | . . . . Triggered . | . . . . Disarmed . | . . . . Reprogrammed . | . . . . Reused . | . . . . Traps Extracted . | . . . . Installed . | . . . . Triggered . | . . . . Machines | -11 -10 -10 -9 ---------- Run | Yrd Mat Min Mat Machines Disabled . | . . . . Max in Single Turn . | . . . . Machines Repaired . | . . . . Machines Dismantled . | . . . . Machines Sabotaged . | . . . . Overloaded Fab Kills . | . . . . Hacking | -11 -10 -10 -9 --------- Run | Yrd Mat Min Mat Machines Accessed 1 | . 1 . . Terminals 1 | . 1 . . Fabricators . | . . . . Repair Stations . | . . . . Recycling Units . | . . . . Scanalyzers . | . . . . Garrison Access . | . . . . Total Hacks 2 | . 2 . . Successful 1 | . 1 . . Failed 1 | . 1 . . Catastrophic . | . . . . Database Lockouts . | . . . . Manual 1 | . . . 1 Terminals 2 | . 2 . . Fabricators . | . . . . Repair Stations . | . . . . Recycling Units . | . . . . Scanalyzers . | . . . . Garrison Access . | . . . . Terminal Hacks 1 | . 1 . . Branch Access Points 1 | . 1 . . Fabricator Hacks . | . . . . Repair Station Hacks . | . . . . Recycling Unit Hacks . | . . . . Scanalyzer . | . . . . Garrison Access Hacks . | . . . . Unauthorized Hacks . | . . . . Terminals . | . . . . Fabricators . | . . . . Repair Stations . | . . . . Recycling Units . | . . . . Scanalyzers . | . . . . Garrison Access . | . . . . Data Cores Recovered . | . . . . Used . | . . . . Hacking Detections 1 | . 1 . . Full Trace Events . | . . . . Feedback Events . | . . . . Feedback Blocked . | . . . . Robot Schematics Acquired . | . . . . Robots Built . | . . . . Authchips . | . . . . Time . | . . . . Total Robot Build Rating . | . . . . Part Schematics Acquired . | . . . . Parts Built . | . . . . Authchips . | . . . . Time . | . . . . Total Part Build Rating . | . . . . Parts Repaired . | . . . . Time . | . . . . Parts Recycled . | . . . . Recycled Matter . | . . . . Retrieved Matter . | . . . . Retrieved Components . | . . . . Parts Scanalyzed . | . . . . Part Schematics Acquired . | . . . . Parts Damaged . | . . . . Bothacking | -11 -10 -10 -9 ------------ Run | Yrd Mat Min Mat Used RIF Installer . | . . . . Robots Hacked . | . . . . Non-combat . | . . . . Combat . | . . . . Robot Hacks Applied . | . . . . Relay Couplers Released . | . . . . Fabnet Peak Effective % . | . . . . Robots Rewired . | . . . . Allies Hacked . | . . . . Hacks Repelled . | . . . . Allies | -11 -10 -10 -9 -------- Run | Yrd Mat Min Mat Total Allies . | . . . . Largest Group . | . . . . Highest-Rated Group . | . . . . Highest-Rated Ally . | . . . . Total Orders . | . . . . Ally Attacks . | . . . . Total Damage . | . . . . Kills . | . . . . Allies Corrupted . | . . . . Allies Melted . | . . . . Intel | -11 -10 -10 -9 ------- Run | Yrd Mat Min Mat Active Infowar (turns) 409 | 62 143 100 104 Seismic 409 | 62 143 100 104 Robot Analysis Total . | . . . . Derelict Logs Recovered 1 | . . 1 . Drone Launches . | . . . . Drone Recoveries . | . . . . Exploration | -11 -10 -10 -9 ------------- Run | Yrd Mat Min Mat Turns Passed 527 | 135 143 100 149 Spaces Moved 332 | 80 83 84 85 Core 12 | 11 . . 1 Treads . | . . . . Legs 320 | 69 83 84 84 Wheels . | . . . . Hover . | . . . . Flight . | . . . . Fastest Speed 50 | 50 120 120 100 Average Speed 117 | 111 120 120 119 Slowest Speed 120 | 120 120 120 120 Overloaded Moves . | . . . . Propulsion Burnouts . | . . . . Robots Hopped . | . . . . Potential Cave-ins . | . . . . Cave-ins Triggered . | . . . . Exploration Rate (%) 19 | 4 25 33 14 Regions Visited 3 Branch Regions 1 Pre-discovered Areas . | . . . . Known Exits Taken 1 | . 1 . . Unknown Exits Taken 2 | 1 . 1 . Scrap Searched 2 | . . 2 . Spaces Dug . | . . . . Terrain Destroyed . | . . . . Melee . | . . . . Projectile . | . . . . AOE . | . . . . Terrain Rammed . | . . . . Walls Destroyed . | . . . . Machines Disabled . | . . . . Actions | -11 -10 -10 -9 --------- Run | Yrd Mat Min Mat Total 396 | 102 101 83 110 Wait . | . . . . Move 329 | 79 82 83 85 Hop . | . . . . Pick Up 9 | 5 4 . . Fast Attach 8 | 7 . . 1 Attach 3 | . . . 3 Detach . | . . . . Swap 1 | . . . 1 Drop 3 | . 1 . 2 Fire 43 | 11 14 . 18 Melee . | . . . . Ram . | . . . . Kick . | . . . . Crush . | . . . . Escape Stasis . | . . . . Rewire . | . . . . Trap . | . . . . Miscellaneous . | . . . . Route ------- -11/Scrapyard -10/Materials -10/Mines (discovered 2 exits: *Mat x2) -9/Materials History --------- Turn | Location | Event 17 | -11/Scrapyard | Discovered new exit (range 15) 136 | -11/Scrapyard | Entered Materials 167 | -10/Materials | Identified exit to Mines 279 | -10/Materials | Entered Mines 295 | -10/Mines | Learned Materials garrison access intel 296 | -10/Mines | Met a Derelict bent on vengeance 312 | -10/Mines | Build established: Mutant 341 | -10/Mines | Discovered new exit (range 9) 360 | -10/Mines | Discovered new exit (range 6) 379 | -10/Mines | Entered Materials 379 | -9/Materials | Evolved 2 slots: Propulsion x2 521 | -9/Materials | Core integrity fell below 50% 528 | -9/Materials | Core integrity fell below 20% 528 | -9/Materials | Self-destructed Last Messages --------------- reinforcements to Terminal M007. S-10 Pest destroyed. Switching to secondary target: S-10 Pest. Assault Rifle destroyed. G-34 Mercenary destroyed. Lgt. Assault Rifle destroyed. Aluminum Leg destroyed. System corrupted by crushing effect (+1). Knocked back. R-06 Scavenger collects Aluminum Leg. Targeting Computer destroyed. System corrupted by crushing effect (+2). S-10 Pest destroyed. R-06 Scavenger collects Seismic Detector. Aluminum Leg destroyed. Lgt. Assault Rifle destroyed. System corrupted by crushing effect (+2). B-36 Bruiser suffers critical hit (Burn). System corrupted: Heat flow error (+122). Lgt. Assault Rifle destroyed. Map ----- +----------------------------------------------------+ | ?????????????? ????# ##+##### #??? | | ??????????######+####### #??? | | ??????????# " #??? | | ??????????# ###### #??? | | ??????????# #????# ####### #??? | | ??????????#########????#######?????# #??? | | ???????????????????????????????????# #??? | | ???????????????????????????????????# #??? | | ?????????????????????##??????####### #??? | | ???????????????????### ####### # #??? | | ???????????????????? # ! # #??? | | ???????????????????? # + +??? | | ????????????????????? ?# ** # #??? | | ????????????????????? ?# * # #??? | | ?????????????????????? ? # ## ##??? | | ?????????????????????? # ## #???? | | ????????# ????????????? ######## #???? | | ?????????? ??????????? ?????????# #???? | | ????????#+##/###########+##?????????# #???? | | ????????# ###########/#???? | | ????????+ # #???? | | ????????# % # """ """ !#???? | | ????????# ######Y### / """ """ #???? | | ????????# g # s % * # # """ """ #???? | | ????????+ g s b[ # #[ #???? | | ????????###### g @ # #############???? | | ?????????????# g # #???????????????? | | ?????????????# # #???????????????? | | ????????????#T # #???????????????? | | ????????????## # #???????????????? | | ?????????????# # #???????????????? | | ?????????????# # #???????????????? | | ?????????????####+##### #???????????????? | | ????????????????[ ????# #???????????????? | | ???????????????? ????# ????????????????? | | ???????????????? ????# ????????????????? | | ???????????????? ????? ????????????????? | | ???????????????? ????????????????????????? | | ???????????????? ????????????????????????? | | ??????????????????????????????????????????? | | ??????????????????????????????????????????? | | ??????????????????????????????????????????? | | ??????????????????????????????????????????? | | ??????????????????????????????????????????? | | ??????????????????????????????????????????? | | ??????????????????????????????????????????? | | ??????????????????????????????????????????? | | ??????????????????????????????????????????? | | ??????????????????????????????????????????? | | ??????????????????????????????????????????? | +----------------------------------------------------+ Best States ------------- Heat Dissipation 28 Energy Generation 10 Energy Capacity 250 Matter Stores 300 Matter Capacity 300 Sight Range 16 Terrain Scan Density 10 Evasion (%) 55 Targeting Accuracy 5 Item Schematics ----------------- None Robot Schematics ------------------ None Fabricated ------------ Nothing Repaired ---------- Nothing Alien Tech Used ----------------- None Achievements -------------- None Challenges ------------ None Game ------ Seed MediumAmuletAutopenetrator Manual? 0 Play Time 00:09:25 Cumulative 10.9 hours Start 2025.05.06 @ 22:32:27 End 2025.05.06 @ 22:42:24 Sessions 1 Manual Loads 0 Difficulty Rogue Special Mode None Game No. 11 Rogue 11 Adventurer 0 Explorer 0 Win Type - Total 0 Types 0/0/0/0/0/0/0/0/0/0 Lore% 16 Gallery% 10 Achievement% 12 Wizard Run 0 Options --------- Layout 1 ASCII 0 Keyboard 0 Movement Mouse Keybinds 1 Fullscreen 1 Font 24/Smallcaps Map View 50x35 Zoom Use 0% Tactical HUD 0 Map Filters NONE Filters NONE Steam 1 RUN: fe987060-88d0-4a43-949b-5ba1591d918e